{"text_format":"3","workbook":"xlsx","n_sheets":8,"sheets":["Family Tree","Parents","Paternal Grandparents","Maternal Grandparents","Paternal G Grandparents 1","Paternal G Grandparents 2","Maternal G Grandparents 1","Maternal G Grandparents 2"],"not_rendered":{"images":16,"defined_names":97},"read":"whole","date_system":"1900"}

{"sheet":"Family Tree","index":0,"n_rows":34,"n_cols":14,"rows_kept":34,"merged":[[2,1,3,4],[3,13,3,14],[4,10,4,11],[5,13,5,14],[6,7,6,8],[7,13,7,14],[8,10,8,11],[9,13,9,14],[10,4,10,5],[11,13,11,14],[12,10,12,11],[13,13,13,14],[14,7,14,8],[15,13,15,14],[16,10,16,11],[17,13,17,14],[18,1,18,2],[19,13,19,14],[20,10,20,11],[21,13,21,14],[22,7,22,8],[23,13,23,14],[24,10,24,11],[25,13,25,14],[26,4,26,5],[27,13,27,14],[28,10,28,11],[29,13,29,14],[30,7,30,8],[31,13,31,14],[32,10,32,11],[33,13,33,14]]}
[]
[null,"Smith - Jensen"]
[null,"FAMILY TREE"]
[{"$nulls":13},"Paternal GG Grandfather 1 "]
[{"$nulls":10},"Paternal G Grandfather 1   "]
[{"$nulls":13},"Paternal GG Grandmother 1 "]
[{"$nulls":7},"Ronaldo Smith Jr."]
[{"$nulls":13},"Paternal GG Grandfather 2 "]
[{"$nulls":10},"Paternal G Grandmother 1 "]
[{"$nulls":13},"Paternal GG Grandmother 2 "]
[{"$nulls":4},"Brian Smith"]
[{"$nulls":13},"Paternal GG Grandfather 3 "]
[{"$nulls":10},"Paternal G Grandfather 2   "]
[{"$nulls":13},"Paternal GG Grandmother 3 "]
[{"$nulls":7},"Laure Goudiard du Mesnil"]
[{"$nulls":13},"Paternal GG Grandfather 4 "]
[{"$nulls":10},"Paternal G Grandmother 2 "]
[{"$nulls":13},"Paternal GG Grandmother 4 "]
[null,"Samantha Smith"]
[{"$nulls":13},"Maternal GG Grandfather 1 "]
[{"$nulls":10},"Maternal G Grandfather 1  "]
[{"$nulls":13},"Maternal GG Grandmother 1 "]
[{"$nulls":7},"Thomas Søndergaard Jensen"]
[{"$nulls":13},"Maternal GG Grandfather 2 "]
[{"$nulls":10},"Maternal G Grandmother 1 "]
[{"$nulls":13},"Maternal GG Grandfather 3 "]
[{"$nulls":4},"Christiane Rønnow Jensen"]
[{"$nulls":13},"Maternal GG Grandmother 3 "]
[{"$nulls":10},"Maternal G Grandfather 2  "]
[{"$nulls":13},"Maternal GG Grandmother 3 "]
[{"$nulls":7},"Charlotte Weiss"]
[{"$nulls":13},"Maternal GG Grandfather 4 "]
[{"$nulls":10},"Maternal G Grandmother 2 "]
[{"$nulls":13},"Maternal GG Grandmother 4 "]

{"sheet":"Parents","index":1,"n_rows":32,"n_cols":8,"rows_kept":32,"merged":[[9,1,9,3],[9,5,9,7],[10,2,10,3],[10,6,10,7],[11,2,11,3],[11,6,11,7],[12,2,12,3],[12,6,12,7],[13,2,13,3],[14,2,14,3],[14,6,14,7],[15,2,15,3],[15,6,15,7],[19,1,19,7],[20,1,20,7],[21,1,21,7],[22,1,22,7],[23,1,23,7],[24,1,24,7],[25,1,25,7]]}
[null,{"$f":"TreeName","v":"Smith - Jensen"}]
[null,"FAMILY TREE"]
[]
[]
[null,"FATHER'S PARENTS",{"$nulls":3},"MOTHER'S PARENTS"]
[]
[]
[]
[]
[null,{"$f":"\"Father: \"&Father","v":"Father: Brian Smith"},{"$nulls":3},{"$f":"\"Mother: \"&Mother","v":"Mother: Christiane Rønnow Jensen"}]
[null,null,"BIRTH",{"$nulls":3},"BIRTH"]
[null,null,"11 Feb 1948",{"$nulls":3},"13 Feb 1953"]
[null,null,"Eugene, Illinois, USA",{"$nulls":3},"Denmark"]
[null,null,"DEATH",{"$nulls":3},"DEATH"]
[]
[]
[]
[]
[null," Notes"]
[null,"Married in Springfield, Indiana Nov 1980"]
{"$rows_empty":7}
[null,"CHILDREN","NAME","RELATIONSHIP","BIRTH","BIRTH LOCATION","DEATH","DEATH LOCATION"]
[null,null,{"$f":"Home","v":"Samantha Smith"},"Daughter","23 Jan 1983","Illinois"]
[null,null,"Brian Smith","Son","20 Apr 1985","Illinois"]
[null,null,"John Smith","Son","19 Jan 1987","Illinois"]
[null,null,"Tony Smith","Son","11 Oct 1990","Illinois"]

{"sheet":"Paternal Grandparents","index":2,"n_rows":33,"n_cols":8,"rows_kept":33,"merged":[[9,1,9,3],[9,5,9,7],[10,2,10,3],[10,6,10,7],[11,2,11,3],[11,6,11,7],[12,2,12,3],[12,6,12,7],[13,2,13,3],[14,2,14,3],[14,6,14,7],[15,2,15,3],[15,6,15,7],[20,1,20,7],[21,1,21,7],[22,1,22,7],[23,1,23,7],[24,1,24,7],[25,1,25,7],[26,1,26,7]]}
[null,{"$f":"TreeName","v":"Smith - Jensen"}]
[null,"FAMILY TREE"]
[]
[]
[null,"FATHER'S PARENTS",{"$nulls":3},"MOTHER'S PARENTS"]
[]
[]
[]
[]
[null,{"$f":"\"Father: \"&PGrandfather","v":"Father: Ronaldo Smith Jr."},{"$nulls":3},{"$f":"\"Mother: \"&PGrandmother","v":"Mother: Laure Goudiard du Mesnil"}]
[null,null,"BIRTH",{"$nulls":3},"BIRTH"]
[null,null,"3 Mar 1906",{"$nulls":3},"11 Nov 1925"]
[null,null,"Eugene, Illinois, USA",{"$nulls":3},"France"]
[null,null,"DEATH",{"$nulls":3},"DEATH"]
[null,null,"17 Jun 1991",{"$nulls":3},"4 Mar 2005"]
[null,null,"Nevie, Indiana, USA",{"$nulls":3},"Nevie, Indiana, USA"]
[]
[]
[]
[null," Notes"]
[null,"Married in Eugene, Illinois Apr 1940."]
[null,"Laure immigrated to the US in 1955 with her parents and was naturalized in 1960."]
[]
[]
[]
[]
[]
[]
[null,"CHILDREN","NAME","RELATIONSHIP","BIRTH","BIRTH LOCATION","DEATH","DEATH LOCATION"]
[null,null,{"$f":"Father","v":"Brian Smith"},"Son",{"$f":"IF(FatherBirth<>0,FatherBirth,\"\")","v":"11 Feb 1948"},{"$f":"IF(FatherBirthLoc<>0,FatherBirthLoc,\"\")","v":"Eugene, Illinois, USA"},{"$f":"IF(FatherDeath<>0,FatherDeath,\"\")","v":""},{"$f":"IF(FatherDeathLoc<>0,FatherDeathLoc,\"\")","v":""}]
[null,null,"Ben Smith","Son","28 Mar 1952","Nevie, Indiana"]
[null,null,"Denise Smith","Daughter","30 Mar 1955","Nevie, Indiana"]
[null,null,"Infant Smith","Son","20 Nov 1960","Nevie, Indiana","23 Nov 1960","Nevie, Indiana"]

{"sheet":"Maternal Grandparents","index":3,"n_rows":32,"n_cols":8,"rows_kept":32,"merged":[[9,1,9,3],[9,5,9,7],[10,2,10,3],[10,6,10,7],[11,2,11,3],[11,6,11,7],[12,2,12,3],[12,6,12,7],[13,2,13,3],[14,2,14,3],[14,6,14,7],[15,2,15,3],[15,6,15,7],[20,1,20,7],[21,1,21,7],[22,1,22,7],[23,1,23,7],[24,1,24,7],[25,1,25,7],[26,1,26,7]]}
[null,{"$f":"TreeName","v":"Smith - Jensen"}]
[null,"FAMILY TREE"]
[]
[]
[null,"FATHER'S PARENTS",{"$nulls":3},"MOTHER'S PARENTS"]
[]
[]
[]
[]
[null,{"$f":"\"Father: \"&MGrandfather","v":"Father: Thomas Søndergaard Jensen"},{"$nulls":3},{"$f":"\"Mother: \"&MGrandmother","v":"Mother: Charlotte Weiss"}]
[null,null,"BIRTH",{"$nulls":3},"BIRTH"]
[null,null,"13 Dec 1926",{"$nulls":3},"27 Sep 1932"]
[null,null,"Denmark",{"$nulls":3},"Denmark"]
[null,null,"DEATH",{"$nulls":3},"DEATH"]
[null,null,"24 Jan 2006"]
[null,null,"Neivie, Indiana, USA"]
[]
[]
[]
[null," Notes"]
{"$rows_empty":8}
[null,"CHILDREN","NAME","RELATIONSHIP","BIRTH","BIRTH LOCATION","DEATH","DEATH LOCATION"]
[null,null,{"$f":"Mother","v":"Christiane Rønnow Jensen"},"Daughter",{"$f":"IF(MotherBirth<>0,MotherBirth,\"\")","v":"13 Feb 1953"},{"$f":"IF(MotherBirthLoc<>0,MotherBirthLoc,\"\")","v":"Denmark"},{"$f":"IF(MotherDeath<>0,MotherDeath,\"\")","v":""},{"$f":"IF(MotherDeathLoc<>0,MotherDeathLoc,\"\")","v":""}]
[null,null,"Erik Jensen","Son","18 Oct 1956","Nevie, Indiana","17 Sep 1970","Nevie, Indiana"]
[null,null,"Henrik Jensen","Son","2 Jan 1957","Nevie, Indiana"]

{"sheet":"Paternal G Grandparents 1","index":4,"n_rows":35,"n_cols":8,"rows_kept":35,"merged":[[9,1,9,3],[9,5,9,7],[10,2,10,3],[10,6,10,7],[11,2,11,3],[11,6,11,7],[12,2,12,3],[12,6,12,7],[13,2,13,3],[14,2,14,3],[14,6,14,7],[15,2,15,3],[15,6,15,7],[20,1,20,7],[21,1,21,7],[22,1,22,7],[23,1,23,7],[24,1,24,7],[25,1,25,7],[26,1,26,7]]}
[null,{"$f":"TreeName","v":"Smith - Jensen"}]
[null,"FAMILY TREE"]
[]
[]
[null,"FATHER'S PARENTS",{"$nulls":3},"MOTHER'S PARENTS"]
[]
[]
[]
[]
[null,{"$f":"\"Father: \"&PGGrandfather1","v":"Father: Paternal G Grandfather 1   "},{"$nulls":3},{"$f":"\"Mother: \"&PGGrandmother1","v":"Mother: Paternal G Grandmother 1 "}]
[null,null,"BIRTH",{"$nulls":3},"BIRTH"]
[]
[]
[null,null,"DEATH",{"$nulls":3},"DEATH"]
[]
[]
[]
[]
[]
[null," Notes"]
{"$rows_empty":8}
[null,"CHILDREN","NAME","RELATIONSHIP","BIRTH","BIRTH LOCATION","DEATH","DEATH LOCATION"]
[null,null,{"$f":"PGrandfather","v":"Ronaldo Smith Jr."},"Son",{"$f":"IF(PGFatherBirth<>0,PGFatherBirth,\"\")","v":"3 Mar 1906"},{"$f":"IF(PGFatherBirthLoc<>0,PGFatherBirthLoc,\"\")","v":"Eugene, Illinois, USA"},{"$f":"IF(PGFatherDeath<>0,PGFatherDeath,\"\")","v":"17 Jun 1991"},{"$f":"IF(PGFatherDeathLoc<>0,PGFatherDeathLoc,\"\")","v":"Nevie, Indiana, USA"}]
[null,null,{"$f":"PGrandfather","v":"Ronaldo Smith Jr."}]
[null,null,{"$f":"PGrandfather","v":"Ronaldo Smith Jr."}]
[null,null,{"$f":"PGrandfather","v":"Ronaldo Smith Jr."}]
[null,null,{"$f":"PGrandfather","v":"Ronaldo Smith Jr."}]
[null,null,{"$f":"PGrandfather","v":"Ronaldo Smith Jr."}]

{"sheet":"Paternal G Grandparents 2","index":5,"n_rows":35,"n_cols":8,"rows_kept":35,"merged":[[9,1,9,3],[9,5,9,7],[10,2,10,3],[10,6,10,7],[11,2,11,3],[11,6,11,7],[12,2,12,3],[12,6,12,7],[13,2,13,3],[14,2,14,3],[14,6,14,7],[15,2,15,3],[15,6,15,7],[20,1,20,7],[21,1,21,7],[22,1,22,7],[23,1,23,7],[24,1,24,7],[25,1,25,7],[26,1,26,7]]}
[null,{"$f":"TreeName","v":"Smith - Jensen"}]
[null,"FAMILY TREE"]
[]
[]
[null,"FATHER'S PARENTS",{"$nulls":3},"MOTHER'S PARENTS"]
[]
[]
[]
[]
[null,{"$f":"\"Father: \"&PGGrandfather2","v":"Father: Paternal G Grandfather 2   "},{"$nulls":3},{"$f":"\"Mother: \"&PGGrandmother2","v":"Mother: Paternal G Grandmother 2 "}]
[null,null,"BIRTH",{"$nulls":3},"BIRTH"]
[]
[]
[null,null,"DEATH",{"$nulls":3},"DEATH"]
[]
[]
[]
[]
[]
[null," Notes"]
{"$rows_empty":8}
[null,"CHILDREN","NAME","RELATIONSHIP","BIRTH","BIRTH LOCATION","DEATH","DEATH LOCATION"]
[null,null,{"$f":"PGrandmother","v":"Laure Goudiard du Mesnil"},"Daughter",{"$f":"IF(PGMotherBirth<>0,PGMotherBirth,\"\")","v":"11 Nov 1925"},{"$f":"IF(PGMotherBirthLoc<>0,PGMotherBirthLoc,\"\")","v":"France"},{"$f":"IF(PGMotherDeath<>0,PGMotherDeath,\"\")","v":"4 Mar 2005"},{"$f":"IF(PGMotherDeathLoc<>0,PGMotherDeathLoc,\"\")","v":"Nevie, Indiana, USA"}]
[null,null,{"$f":"PGrandmother","v":"Laure Goudiard du Mesnil"}]
[null,null,{"$f":"PGrandmother","v":"Laure Goudiard du Mesnil"}]
[null,null,{"$f":"PGrandmother","v":"Laure Goudiard du Mesnil"}]
[null,null,{"$f":"PGrandmother","v":"Laure Goudiard du Mesnil"}]
[null,null,{"$f":"PGrandmother","v":"Laure Goudiard du Mesnil"}]

{"sheet":"Maternal G Grandparents 1","index":6,"n_rows":35,"n_cols":8,"rows_kept":35,"merged":[[9,1,9,3],[9,5,9,7],[10,2,10,3],[10,6,10,7],[11,2,11,3],[11,6,11,7],[12,2,12,3],[12,6,12,7],[13,2,13,3],[14,2,14,3],[14,6,14,7],[15,2,15,3],[15,6,15,7],[20,1,20,7],[21,1,21,7],[22,1,22,7],[23,1,23,7],[24,1,24,7],[25,1,25,7],[26,1,26,7]]}
[null,{"$f":"TreeName","v":"Smith - Jensen"}]
[null,"FAMILY TREE"]
[]
[]
[null,"FATHER'S PARENTS",{"$nulls":3},"MOTHER'S PARENTS"]
[]
[]
[]
[]
[null,{"$f":"\"Father: \"&MGGrandfather1","v":"Father: Maternal G Grandfather 1  "},{"$nulls":3},{"$f":"\"Mother: \"&MGGrandmother1","v":"Mother: Maternal G Grandmother 1 "}]
[null,null,"BIRTH",{"$nulls":3},"BIRTH"]
[]
[]
[null,null,"DEATH",{"$nulls":3},"DEATH"]
[]
[]
[]
[]
[]
[null," Notes"]
{"$rows_empty":8}
[null,"CHILDREN","NAME","RELATIONSHIP","BIRTH","BIRTH LOCATION","DEATH","DEATH LOCATION"]
[null,null,{"$f":"MGrandfather","v":"Thomas Søndergaard Jensen"},"Son",{"$f":"IF(MGFatherBirth<>0,MGFatherBirth,\"\")","v":"13 Dec 1926"},{"$f":"IF(MGFatherBirthLoc<>0,MGFatherBirthLoc,\"\")","v":"Denmark"},{"$f":"IF(MGFatherDeath<>0,MGFatherDeath,\"\")","v":"24 Jan 2006"},{"$f":"IF(MGFatherDeathLoc<>0,MGFatherDeathLoc,\"\")","v":"Neivie, Indiana, USA"}]
[null,null,{"$f":"MGrandfather","v":"Thomas Søndergaard Jensen"}]
[null,null,{"$f":"MGrandfather","v":"Thomas Søndergaard Jensen"}]
[null,null,{"$f":"MGrandfather","v":"Thomas Søndergaard Jensen"}]
[null,null,{"$f":"MGrandfather","v":"Thomas Søndergaard Jensen"}]
[null,null,{"$f":"MGrandfather","v":"Thomas Søndergaard Jensen"}]

{"sheet":"Maternal G Grandparents 2","index":7,"n_rows":35,"n_cols":8,"rows_kept":35,"merged":[[9,1,9,3],[9,5,9,7],[10,2,10,3],[10,6,10,7],[11,2,11,3],[11,6,11,7],[12,2,12,3],[12,6,12,7],[13,2,13,3],[14,2,14,3],[14,6,14,7],[15,2,15,3],[15,6,15,7],[20,1,20,7],[21,1,21,7],[22,1,22,7],[23,1,23,7],[24,1,24,7],[25,1,25,7],[26,1,26,7]]}
[null,{"$f":"TreeName","v":"Smith - Jensen"}]
[null,"FAMILY TREE"]
[]
[]
[null,"FATHER'S PARENTS",{"$nulls":3},"MOTHER'S PARENTS"]
[]
[]
[]
[]
[null,{"$f":"\"Father: \"&MGGrandfather2","v":"Father: Maternal G Grandfather 2  "},{"$nulls":3},{"$f":"\"Mother: \"&MGGrandmother2","v":"Mother: Maternal G Grandmother 2 "}]
[null,null,"BIRTH",{"$nulls":3},"BIRTH"]
[]
[]
[null,null,"DEATH",{"$nulls":3},"DEATH"]
[]
[]
[]
[]
[]
[null," Notes"]
{"$rows_empty":8}
[null,"CHILDREN","NAME","RELATIONSHIP","BIRTH","BIRTH LOCATION","DEATH","DEATH LOCATION"]
[null,null,{"$f":"MGrandmother","v":"Charlotte Weiss"},"Daughter",{"$f":"IF(MGMotherBirth<>0,MGMotherBirth,\"\")","v":"27 Sep 1932"},{"$f":"IF(MGMotherBirthLoc<>0,MGMotherBirthLoc,\"\")","v":"Denmark"},{"$f":"IF(MGMotherDeath<>0,MGMotherDeath,\"\")","v":""},{"$f":"IF(MGMotherDeathLoc<>0,MGMotherDeathLoc,\"\")","v":""}]
[null,null,{"$f":"MGrandmother","v":"Charlotte Weiss"}]
[null,null,{"$f":"MGrandmother","v":"Charlotte Weiss"}]
[null,null,{"$f":"MGrandmother","v":"Charlotte Weiss"}]
[null,null,{"$f":"MGrandmother","v":"Charlotte Weiss"}]
[null,null,{"$f":"MGrandmother","v":"Charlotte Weiss"}]